fUSD/lending_fUSD_20240105
["ID","MTS","AMOUNT","RATE_DAILY","PERIOD"]
[310335497,1704478255245,-637.81,0.00030136,2]
[310335498,1704478255254,-555.95,0.00030136,2]
[310335499,1704478255263,-5260.32,0.00030136,2]
[310335500,1704478255272,-500.0,0.00030136,2]
[310335501,1704478255281,-500.0,0.00030136,2]
[310335502,1704478255291,-500.0,0.00030136,2]
[310335503,1704478255301,-500.0,0.00030136,2]
[310335504,1704478255310,-1535.24,0.00030136,2]
[310335505,1704478255320,-500.0,0.00030136,2]
[310335506,1704478255331,-2289.62,0.00030136,2]
[310335507,1704478255340,-1697.23,0.00030136,2]
[310335508,1704478255350,-2092.8,0.00030136,2]
[310335509,1704478255359,-500.0,0.00030136,2]
[310335510,1704478255369,-623.49,0.00030136,2]
[310335511,1704478255378,-500.0,0.00030136,2]
[310335512,1704478255387,-500.0,0.00030136,2]
[310335513,1704478255397,-500.0,0.00030136,2]
[310335514,1704478255406,-500.0,0.00030136,2]
[310335515,1704478255416,-500.0,0.00030136,2]
[310335516,1704478255426,-500.0,0.00030136,2]
[310335517,1704478255436,-500.0,0.00030136,2]
[310335518,1704478255445,-2062.5,0.00030136,2]
[310335519,1704478255455,-500.0,0.00030136,2]
[310335520,1704478255465,-4071.94,0.00030136,2]
[310335521,1704478255474,-1878.56,0.00030136,2]
[310335522,1704478255483,-500.0,0.00030136,2]
[310335523,1704478255493,-1499.09,0.00030136,2]
[310335524,1704478255503,-500.0,0.00030136,2]
[310335525,1704478255513,-500.0,0.00030136,2]
[310335526,1704478255523,-500.0,0.00030136,2]
[310335527,1704478255533,-558.44066183,0.00030136,2]
[310335528,1704478255543,-1830.35,0.00030136,2]
[310335529,1704478255553,-3669.22,0.00030136,2]
[310335530,1704478255563,-500.0,0.00030136,2]
[310335531,1704478255573,-500.0,0.00030136,2]
[310335532,1704478255583,-3630.26,0.00030136,2]
[310335533,1704478255593,-500.0,0.00030136,2]
[310335534,1704478255603,-500.0,0.00030136,2]
[310335535,1704478255613,-500.0,0.00030136,2]
[310335536,1704478255623,-2503.53,0.00030136,2]
[310335537,1704478255633,-739.13,0.00030136,2]
[310335538,1704478255643,-500.0,0.00030136,2]
[310335539,1704478255653,-500.0,0.00030136,2]
[310335540,1704478255662,-500.0,0.00030136,2]
[310335541,1704478255672,-500.0,0.00030136,2]
[310335542,1704478255682,-500.0,0.00030136,2]
[310335543,1704478255692,-500.0,0.00030136,2]
[310335544,1704478255702,-500.0,0.00030136,2]
[310335545,1704478255712,-1741.7,0.00030136,2]
[310335546,1704478255722,-4170.19,0.00030136,2]
[310335547,1704478255733,-500.0,0.00030136,2]
[310335548,1704478255743,-3393.61,0.00030136,2]
[310335549,1704478255753,-711.68,0.00030136,2]
[310335550,1704478255762,-14143.48,0.00030136,2]
[310335551,1704478255772,-1956.72,0.00030136,2]
[310335552,1704478255782,-500.0,0.00030136,2]
[310335553,1704478255791,-500.0,0.00030136,2]
[310335554,1704478255801,-606.43,0.00030136,2]
[310335555,1704478255811,-500.0,0.00030136,2]
[310335556,1704478255821,-500.0,0.00030136,2]
[310335557,1704478255831,-500.0,0.00030136,2]
[310335558,1704478255850,-4512.48,0.00030136,2]
[310335559,1704478255863,-2194.25,0.00030136,2]
[310335560,1704478255874,-500.0,0.00030136,2]
[310335561,1704478255888,-5826.76,0.00030136,2]
[310335562,1704478255899,-500.0,0.00030136,2]
[310335563,1704478255909,-500.0,0.00030136,2]
[310335564,1704478255920,-1286.47,0.00030136,2]
[310335565,1704478255932,-500.0,0.00030136,2]
[310335566,1704478255943,-1557.93,0.00030136,2]
[310335567,1704478255954,-500.0,0.00030136,2]
[310335568,1704478255965,-500.0,0.00030136,2]
[310335569,1704478255977,-500.0,0.00030136,2]
[310335570,1704478255988,-633.53026568,0.00030136,2]
[310335571,1704478255999,-500.0,0.00030136,2]
[310335572,1704478256011,-423.92715452,0.00030136,2]
[310335573,1704478256021,-500.0,0.00030136,2]
[310335574,1704478256032,-500.0,0.00030136,2]
[310335575,1704478256043,-500.0,0.00030136,2]
[310335576,1704478256055,-500.0,0.00030136,2]
[310335577,1704478256301,-2234.59,0.00030136,2]
[310335578,1704478256312,-500.0,0.00030136,2]
[310335579,1704478256322,-500.0,0.00030136,2]
[310335580,1704478256331,-500.0,0.00030136,2]
[310335581,1704478256341,-500.0,0.00030136,2]
[310335582,1704478256350,-658.24,0.00030136,2]
[310335583,1704478256361,-500.0,0.00030136,2]
[310335584,1704478256372,-500.0,0.00030136,2]
[310335585,1704478256384,-500.0,0.00030136,2]
[310335586,1704478256394,-500.0,0.00030136,2]
[310335587,1704478256404,-3384.57,0.00030136,2]
[310335588,1704478256413,-4166.42,0.00030136,2]
[310335589,1704478256423,-3329.36,0.00030136,2]
[310335590,1704478256433,-5701.04,0.00030136,2]
[310335591,1704478256442,-500.0,0.00030136,2]
[310335592,1704478256453,-500.0,0.00030136,2]
[310335593,1704478256462,-500.0,0.00030136,2]
[310335594,1704478256472,-500.0,0.00030136,2]
[310335595,1704478256482,-500.0,0.00030136,2]
[310335596,1704478256490,-500.0,0.00030136,2]
[310335597,1704478256499,-1099.53,0.00030136,2]
[310335598,1704478256509,-1999.67,0.00030136,2]
[310335599,1704478256518,-500.0,0.00030136,2]
[310335600,1704478256528,-540.4,0.00030136,2]
[310335601,1704478256538,-500.0,0.00030136,2]
[310335602,1704478256547,-2540.02,0.00030136,2]
[310335603,1704478256557,-500.0,0.00030136,2]
[310335604,1704478256566,-500.0,0.00030136,2]
[310335605,1704478256576,-500.0,0.00030136,2]
[310335606,1704478256585,-500.0,0.00030136,2]
[310335607,1704478256596,-1336.43,0.00030136,2]
[310335608,1704478256605,-912.83,0.00030136,2]
[310335609,1704478256615,-500.0,0.00030136,2]
[310335610,1704478256624,-1496.37,0.00030136,2]
[310335611,1704478256633,-500.0,0.00030136,2]
[310335612,1704478256643,-283.62596043,0.00030136,2]
[310335613,1704478256653,-3456.02,0.00030136,2]
[310335614,1704478256663,-500.0,0.00030136,2]
[310335615,1704478256672,-709.31,0.00030136,2]
[310335616,1704478256682,-2028.82,0.00030136,2]
[310335617,1704478256692,-500.0,0.00030136,2]
[310335618,1704478256701,-500.0,0.00030136,2]
[310335619,1704478256711,-500.0,0.00030136,2]
[310335620,1704478256720,-3033.76,0.00030136,2]
[310335621,1704478256730,-500.0,0.00030136,2]
[310335622,1704478256739,-500.0,0.00030136,2]
[310335623,1704478256749,-500.0,0.00030136,2]
[310335624,1704478256758,-2660.01,0.00030136,2]
[310335625,1704478256767,-500.0,0.00030136,2]
[310335626,1704478256777,-797.44,0.00030136,2]
[310335627,1704478256786,-533.09,0.00030136,2]
[310335628,1704478256795,-404.32852949,0.00030136,2]
[310335629,1704478256804,-500.0,0.00030136,2]
[310335630,1704478256815,-500.0,0.00030136,2]
[310335631,1704478256824,-500.0,0.00030136,2]
[310335632,1704478256834,-5160.19,0.00030136,2]
[310335633,1704478256843,-500.0,0.00030136,2]
[310335634,1704478256852,-500.0,0.00030136,2]
[310335635,1704478256862,-500.0,0.00030136,2]
[310335636,1704478256872,-500.0,0.00030136,2]
[310335637,1704478256882,-1204.65,0.00030136,2]
[310335638,1704478256891,-641.02,0.00030136,2]
[310335639,1704478256901,-500.0,0.00030136,2]
[310335640,1704478256910,-500.0,0.00030136,2]
[310335641,1704478256919,-500.0,0.00030136,2]
[310335642,1704478256930,-500.0,0.00030136,2]
[310335643,1704478256942,-500.0,0.00030136,2]
[310335644,1704478256951,-500.0,0.00030136,2]
[310335645,1704478256960,-2743.63,0.00030136,2]
[310335646,1704478256969,-500.0,0.00030136,2]
[310335647,1704478256979,-1248.34,0.00030136,2]
[310335648,1704478256988,-2488.0,0.00030136,2]
[310335649,1704478256998,-1702.34,0.00030136,2]
[310335650,1704478257007,-726.84,0.00030136,2]
[310335651,1704478257017,-2317.11,0.00030136,2]
[310335652,1704478257027,-500.0,0.00030136,2]
[310335653,1704478257038,-3521.58,0.00030136,2]
[310335654,1704478257047,-500.0,0.00030136,2]
[310335655,1704478257057,-930.79,0.00030136,2]
[310335656,1704478257069,-615.37,0.00030136,2]
[310335657,1704478257078,-500.0,0.00030136,2]
[310335658,1704478257087,-716.43,0.00030136,2]
[310335659,1704478257096,-500.0,0.00030136,2]
[310335660,1704478257106,-1089.63,0.00030136,2]
[310335661,1704478257115,-500.0,0.00030136,2]
[310335662,1704478257125,-500.0,0.00030136,2]
[310335663,1704478257134,-23051.48,0.00030136,2]
[310335664,1704478257143,-554.30091443,0.00030136,2]
[310335665,1704478257152,-1651.5,0.00030136,2]
[310335666,1704478257161,-500.0,0.00030136,2]
[310335667,1704478257171,-1350.99,0.00030136,2]
[310335668,1704478257182,-500.0,0.00030136,2]
[310335669,1704478257192,-500.0,0.00030136,2]
[310335670,1704478257202,-500.0,0.00030136,2]
[310335671,1704478257211,-2082.4,0.00030136,2]
[310335672,1704478257220,-556.59,0.00030136,2]
[310335673,1704478257230,-500.0,0.00030136,2]
[310335674,1704478257240,-1838.79,0.00030136,2]
[310335675,1704478257250,-2129.91,0.00030136,2]
[310335676,1704478257260,-500.0,0.00030136,2]
[310335677,1704478257270,-4628.16,0.00030136,2]
[310335678,1704478257280,-1114.73,0.00030136,2]
[310335679,1704478257289,-500.0,0.00030136,2]
[310335680,1704478257298,-500.0,0.00030136,2]
[310335681,1704478257307,-1488.21,0.00030136,2]
[310335682,1704478257316,-500.0,0.00030136,2]
[310335683,1704478257326,-500.0,0.00030136,2]
[310335684,1704478257337,-500.0,0.00030136,2]
[310335685,1704478257348,-527.83,0.00030136,2]
[310335686,1704478257357,-500.0,0.00030136,2]
[310335687,1704478257367,-633.9,0.00030136,2]
[310335688,1704478257377,-1099.69,0.00030136,2]
[310335689,1704478257388,-1126.7,0.00030136,2]
[310335690,1704478257398,-500.0,0.00030136,2]
[310335691,1704478257409,-500.0,0.00030136,2]
[310335692,1704478257418,-3045.53,0.00030136,2]
[310335693,1704478257428,-6507.43,0.00030136,2]
[310335694,1704478257437,-500.0,0.00030136,2]
[310335695,1704478257448,-500.0,0.00030136,2]
[310335696,1704478257457,-500.0,0.00030136,2]
[310335697,1704478257467,-3728.5,0.00030136,2]
[310335698,1704478257477,-500.0,0.00030136,2]
[310335699,1704478257486,-1675.29,0.00030136,2]
[310335700,1704478257495,-500.0,0.00030136,2]
[310335701,1704478257506,-500.0,0.00030136,2]
[310335702,1704478257515,-573.52,0.00030136,2]
[310335703,1704478257524,-524.12043969,0.00030136,2]
[310335704,1704478257534,-500.0,0.00030136,2]
[310335705,1704478257544,-500.0,0.00030136,2]
[310335706,1704478257553,-500.0,0.00030136,2]
[310335707,1704478257564,-500.0,0.00030136,2]
[310335708,1704478257574,-500.0,0.00030136,2]
[310335709,1704478257584,-505.56014696,0.00030136,2]
[310335710,1704478257594,-500.0,0.00030136,2]
[310335711,1704478257603,-500.0,0.00030136,2]
[310335712,1704478257613,-1056.13,0.00030136,2]
[310335713,1704478257622,-500.0,0.00030136,2]
[310335714,1704478257632,-1386.34,0.00030136,2]
[310335715,1704478257642,-2360.95,0.00030136,2]
[310335716,1704478257651,-3613.86,0.00030136,2]
[310335717,1704478257661,-623.8,0.00030136,2]
[310335718,1704478257671,-500.0,0.00030136,2]
[310335719,1704478257681,-500.0,0.00030136,2]
[310335720,1704478257690,-500.0,0.00030136,2]
[310335721,1704478257699,-500.0,0.00030136,2]
[310335722,1704478257709,-500.0,0.00030136,2]
[310335723,1704478257718,-500.0,0.00030136,2]
[310335724,1704478257728,-2949.16,0.00030136,2]
[310335725,1704478257737,-500.0,0.00030136,2]
[310335726,1704478257746,-3573.88,0.00030136,2]
[310335727,1704478257755,-33429.29,0.00030136,2]
[310335728,1704478257765,-5044.13,0.00030136,2]
[310335729,1704478257778,-1529.18,0.00030136,2]
[310335730,1704478257788,-157.95006801,0.00030136,2]
[310335731,1704478257798,-10156.38,0.00030136,2]
[310335732,1704478257807,-500.0,0.00030136,2]
[310335733,1704478257816,-500.0,0.00030136,2]
[310335734,1704478257826,-500.0,0.00030136,2]
[310335735,1704478257836,-1290.41,0.00030136,2]
[310335736,1704478257845,-500.0,0.00030136,2]
[310335737,1704478257854,-377.0562771,0.00030136,2]
[310335738,1704478257863,-500.0,0.00030136,2]
[310335739,1704478257874,-2129.46,0.00030136,2]
[310335740,1704478257885,-500.0,0.00030136,2]
[310335741,1704478257895,-500.0,0.00030136,2]
[310335742,1704478257905,-500.0,0.00030136,2]
[310335743,1704478257914,-500.0,0.00030136,2]
[310335744,1704478257924,-500.0,0.00030136,2]
[310335745,1704478257934,-661.6,0.00030136,2]
[310335746,1704478257943,-2745.69,0.00030136,2]
[310335747,1704478257953,-1210.81,0.00030136,2]
[310335748,1704478257962,-500.0,0.00030136,2]
[310335749,1704478257972,-4865.26,0.00030136,2]
[310335750,1704478257981,-500.0,0.00030136,2]
[310335751,1704478257990,-1679.07,0.00030136,2]
[310335752,1704478257999,-3110.2,0.00030136,2]
[310335753,1704478258008,-500.0,0.00030136,2]
[310335754,1704478258018,-500.0,0.00030136,2]
[310335755,1704478258028,-500.0,0.00030136,2]
[310335756,1704478258037,-2863.03,0.00030136,2]
[310335757,1704478258048,-500.0,0.00030136,2]
[310335758,1704478258059,-503.30164932,0.00030136,2]
[310335759,1704478258068,-970.79,0.00030136,2]
[310335760,1704478258078,-500.0,0.00030136,2]
[310335761,1704478258087,-1336.97,0.00030136,2]
[310335762,1704478258096,-500.0,0.00030136,2]
[310335763,1704478258106,-500.0,0.00030136,2]
[310335764,1704478258115,-629.52,0.00030136,2]
[310335765,1704478258124,-500.0,0.00030136,2]
[310335766,1704478258134,-153.84,0.00030137,2]
[310335767,1704478258143,-208.02634532,0.00030137,2]
[310335768,1704478258153,-500.0,0.00030311,2]
[310335769,1704478258162,-160.43,0.00030343,2]
[310335770,1704478258171,-551.81,0.00030388,2]
[310335771,1704478258181,-237.39756375,0.00030408,2]
[310335772,1704478258190,-691.04005445,0.00030408,2]
[310335773,1704478258199,-500.0,0.00030408,2]
[310335774,1704478258209,-500.0,0.00030408,2]
[310335775,1704478258218,-500.0,0.00030408,2]
[310335776,1704478258227,-500.0,0.00030408,2]
[310335777,1704478258236,-500.0,0.00030408,2]
[310335778,1704478258245,-500.0,0.00030408,2]
[310335779,1704478258254,-500.0,0.00030408,2]
[310335780,1704478258264,-500.0,0.00030408,2]
[310335781,1704478258273,-500.0,0.00030408,2]
[310335782,1704478258282,-1424.24937271,0.00030409,2]
[310335783,1704478258292,-1446.38495656,0.00030409,4]
[310335784,1704478258301,-21544.98206469,0.00030409,4]
[310335785,1704478258311,-7485.68006583,0.00030409,4]
[310335786,1704478258320,-500.0,0.00030409,2]
[310335787,1704478258329,-500.0,0.00030409,2]
[310335788,1704478258338,-500.0,0.00030409,2]
[310335789,1704478258347,-721.33,0.00030409,2]
[310335790,1704478258357,-721.33,0.00030409,2]
[310335791,1704478258366,-500.0,0.00030409,2]
[310335792,1704478258375,-287.52,0.00030409,2]
[310335793,1704478258384,-500.0,0.00030409,2]
[310335794,1704478258395,-470.08,0.00030409,2]
[310335795,1704478258404,-9653.5,0.00030409,2]
[310335796,1704478258414,-9653.5,0.00030409,2]
[310335797,1704478258424,-9653.5,0.00030409,2]
[310335798,1704478258433,-150.0,0.00030409,2]
[310335799,1704478258443,-579.75790918,0.0003041,2]
[310335800,1704478258453,-500.0,0.0003041,2]
[310335801,1704478258462,-500.0,0.0003041,2]
[310335802,1704478258471,-338.55851949,0.0003041,2]
[310335803,1704478258480,-500.0,0.0003041,2]
[310335804,1704478258489,-500.0,0.0003041,2]
[310335805,1704478258499,-500.0,0.0003041,2]
[310335806,1704478258508,-500.0,0.0003041,2]
[310335807,1704478258517,-500.0,0.0003041,2]
[310335808,1704478258527,-500.0,0.0003041,2]
[310335809,1704478258536,-500.0,0.0003041,2]
[310335810,1704478258546,-500.0,0.0003041,2]
[310335811,1704478258556,-500.0,0.0003041,2]
[310335812,1704478258660,-500.0,0.0003041,2]
[310335813,1704478258670,-500.0,0.0003041,2]
[310335814,1704478258680,-500.0,0.0003041,2]
[310335815,1704478258689,-500.0,0.0003041,2]
[310335816,1704478258699,-500.0,0.0003041,2]
[310335817,1704478258710,-545.76067171,0.0003041,2]
[310335818,1704478258719,-466.10023055,0.0003041,2]
[310335819,1704478258729,-1000.0,0.0003041,2]
[310335820,1704478258738,-536.90846031,0.0003041,2]
[310335821,1704478258748,-250.0,0.0003041,2]
[310335822,1704478258757,-500.0,0.0003041,2]
[310335823,1704478258766,-500.0,0.0003041,2]
[310335824,1704478258776,-500.0,0.0003041,2]
[310335825,1704478258785,-500.0,0.0003041,2]
[310335826,1704478258795,-500.0,0.0003041,2]
[310335827,1704478258805,-603.66,0.0003041,2]
[310335828,1704478258814,-500.0,0.0003041,2]
[310335829,1704478258823,-500.0,0.0003041,2]
[310335830,1704478258832,-500.0,0.0003041,2]
[310335831,1704478258841,-500.0,0.0003041,2]
[310335832,1704478258850,-500.0,0.0003041,2]
[310335833,1704478258860,-500.0,0.0003041,2]
[310335834,1704478258869,-500.0,0.0003041,2]
[310335835,1704478258879,-596.2,0.0003041,2]
[310335836,1704478258888,-500.0,0.0003041,2]
[310335837,1704478258897,-500.0,0.0003041,2]
[310335838,1704478258907,-500.0,0.0003041,2]
[310335839,1704478258916,-500.0,0.0003041,2]
[310335840,1704478258926,-527.78377201,0.0003041,2]
[310335841,1704478258937,-500.0,0.0003041,2]
[310335842,1704478258947,-500.0,0.0003041,2]
[310335843,1704478258956,-449.72597522,0.0003041,2]
[310335844,1704478258965,-166.1,0.0003041,2]
[310335845,1704478258974,-502.05,0.0003041,2]
[310335846,1704478258983,-500.0,0.0003041,2]
[310335847,1704478258992,-522.83654073,0.0003041,2]
[310335848,1704478259002,-530.72339596,0.0003041,2]
[310335849,1704478259012,-229.01886487,0.0003041,2]
[310335850,1704478259021,-500.0,0.0003041,2]
[310335851,1704478259030,-500.0,0.0003041,2]
[310335852,1704478259040,-546.46,0.0003041,2]
[310335853,1704478259049,-500.0,0.0003041,2]
[310335854,1704478259058,-160.56782265,0.0003041,2]
[310335855,1704478259067,-500.0,0.0003041,2]
[310335856,1704478259076,-500.0,0.0003041,2]
[310335857,1704478259086,-495.0,0.0003041,2]
[310335858,1704478259096,-535.02,0.0003041,2]
[310335859,1704478259106,-184.26999052,0.0003041,2]
[310335860,1704478259116,-517.48379192,0.0003041,2]
[310335861,1704478259125,-500.0,0.0003041,2]
[310335862,1704478259134,-587.5,0.0003041,2]
[310335863,1704478259144,-500.0,0.0003041,2]
[310335864,1704478259153,-500.0,0.0003041,2]
[310335865,1704478259162,-509.2273076,0.0003041,2]
[310335866,1704478259171,-500.0,0.0003041,2]
[310335867,1704478259181,-510.34230463,0.0003041,2]
[310335868,1704478259190,-500.0,0.0003041,2]
[310335869,1704478259200,-500.0,0.0003041,2]
[310335870,1704478259209,-500.0,0.0003041,2]
[310335871,1704478259218,-500.0,0.0003041,2]
[310335872,1704478259227,-500.0,0.0003041,2]
[310335873,1704478259237,-500.0,0.0003041,2]
[310335874,1704478259247,-278.03821397,0.0003041,2]
[310335875,1704478259257,-500.0,0.0003041,2]
[310335876,1704478259266,-500.0,0.0003041,2]
[310335877,1704478259276,-500.0,0.0003041,2]
[310335878,1704478259285,-500.0,0.0003041,2]
[310335879,1704478259295,-221.06593386,0.0003041,2]
[310335880,1704478259305,-500.0,0.0003041,2]
[310335881,1704478259315,-502.86,0.0003041,2]
[310335882,1704478259324,-500.0,0.0003041,2]
[310335883,1704478259333,-500.0,0.0003041,2]
[310335884,1704478259342,-500.0,0.0003041,2]
[310335885,1704478259352,-500.0,0.0003041,2]
[310335886,1704478259361,-500.0,0.0003041,2]
[310335887,1704478259370,-500.0,0.0003041,2]
[310335888,1704478259379,-500.0,0.0003041,2]
[310335889,1704478259389,-500.0,0.0003041,2]
[310335890,1704478259398,-500.0,0.0003041,2]
[310335891,1704478259407,-1323.87,0.0003041,2]
[310335892,1704478259417,-935.12,0.0003041,2]
[310335893,1704478259426,-581.25895342,0.0003041,2]
[310335894,1704478259435,-500.0,0.0003041,2]
[310335895,1704478259446,-673.23,0.0003041,2]
[310335896,1704478259455,-1097.62,0.0003041,2]
[310335897,1704478259464,-500.0,0.0003041,2]
[310335898,1704478259473,-500.0,0.0003041,2]
[310335899,1704478259482,-2121.94,0.0003041,2]
[310335900,1704478259491,-520.77,0.0003041,2]
[310335901,1704478259501,-500.0,0.0003041,2]
[310335902,1704478259510,-500.0,0.0003041,2]
[310335903,1704478259519,-500.0,0.0003041,2]
[310335904,1704478259529,-500.0,0.0003041,2]
[310335905,1704478259538,-500.0,0.0003041,2]
[310335906,1704478259547,-521.11,0.0003041,2]
[310335907,1704478259557,-500.0,0.0003041,2]
[310335908,1704478259566,-1030.08,0.0003041,2]
[310335909,1704478259575,-500.0,0.0003041,2]
[310335910,1704478259585,-500.0,0.0003041,2]
[310335911,1704478259594,-476.49218116,0.0003041,2]
[310335912,1704478259603,-500.0,0.0003041,2]
[310335913,1704478259612,-500.0,0.0003041,2]
[310335914,1704478259622,-500.0,0.0003041,2]
[310335915,1704478259631,-500.0,0.0003041,2]
[310335916,1704478259641,-500.0,0.0003041,2]
[310335917,1704478259650,-500.0,0.0003041,2]
[310335918,1704478259660,-500.0,0.0003041,2]
[310335919,1704478259669,-348.08999331,0.0003041,2]
[310335920,1704478259679,-500.0,0.0003041,2]
[310335921,1704478259688,-500.0,0.0003041,2]
[310335922,1704478259698,-500.0,0.0003041,2]
[310335923,1704478259708,-500.0,0.0003041,2]
[310335924,1704478259717,-500.0,0.0003041,2]
[310335925,1704478259728,-500.0,0.0003041,2]
[310335926,1704478259738,-500.0,0.0003041,2]
[310335927,1704478259747,-500.0,0.0003041,2]
[310335928,1704478259756,-500.0,0.0003041,2]
[310335929,1704478259765,-500.0,0.0003041,2]
[310335930,1704478259775,-500.0,0.0003041,2]
[310335931,1704478259784,-500.0,0.0003041,2]
[310335932,1704478259793,-500.0,0.0003041,2]
[310335933,1704478259802,-500.0,0.0003041,2]
[310335934,1704478259812,-500.0,0.0003041,2]
[310335935,1704478259821,-500.0,0.0003041,2]
[310335936,1704478259830,-500.0,0.0003041,2]
[310335937,1704478259839,-500.0,0.0003041,2]
[310335938,1704478259849,-500.0,0.0003041,2]
[310335939,1704478259860,-500.0,0.0003041,2]
[310335940,1704478259869,-500.0,0.0003041,2]
[310335941,1704478259886,-500.0,0.0003041,2]
[310335942,1704478259895,-500.0,0.0003041,2]
[310335943,1704478259904,-1042.97,0.0003041,2]
[310335944,1704478259914,-500.0,0.0003041,2]
[310335945,1704478259925,-500.0,0.0003041,2]
[310335946,1704478259934,-500.0,0.0003041,2]
[310335947,1704478259946,-500.0,0.0003041,2]
[310335948,1704478259955,-500.0,0.0003041,2]
[310335949,1704478259964,-500.0,0.0003041,2]
[310335950,1704478259974,-500.0,0.0003041,2]
[310335951,1704478259984,-881.97,0.0003041,2]
[310335952,1704478259993,-500.0,0.0003041,2]
[310335953,1704478260002,-500.0,0.0003041,2]
[310335954,1704478260011,-500.0,0.0003041,2]
[310335955,1704478260021,-500.0,0.0003041,2]
[310335956,1704478260030,-500.0,0.0003041,2]
[310335957,1704478260040,-500.0,0.0003041,2]
[310335958,1704478260049,-500.0,0.0003041,2]
[310335959,1704478260059,-500.0,0.0003041,2]
[310335960,1704478260068,-500.0,0.0003041,2]
[310335961,1704478260078,-500.0,0.0003041,2]
[310335962,1704478260088,-500.0,0.0003041,2]
[310335963,1704478260097,-500.0,0.0003041,2]
[310335964,1704478260107,-500.0,0.0003041,2]
[310335965,1704478260116,-588.46677972,0.0003041,2]
[310335966,1704478260126,-500.0,0.0003041,2]
[310335967,1704478260135,-500.0,0.0003041,2]
[310335968,1704478260145,-500.0,0.0003041,2]
[310335969,1704478260154,-500.0,0.0003041,2]
[310335970,1704478260164,-1357.83,0.0003041,2]
[310335971,1704478260173,-500.0,0.0003041,2]
[310335972,1704478260185,-500.0,0.0003041,2]
[310335973,1704478260194,-500.0,0.0003041,2]
[310335974,1704478260203,-500.0,0.0003041,2]
[310335975,1704478260212,-500.0,0.0003041,2]
[310335976,1704478260221,-500.0,0.0003041,2]
[310335977,1704478260230,-500.0,0.0003041,2]
[310335978,1704478260239,-1087.03,0.0003041,2]
[310335979,1704478260248,-500.0,0.0003041,2]
[310335980,1704478260258,-500.0,0.0003041,2]
[310335981,1704478260267,-500.0,0.0003041,2]
[310335982,1704478260277,-500.0,0.0003041,2]
[310335983,1704478260286,-500.0,0.0003041,2]
[310335984,1704478260296,-500.0,0.0003041,2]
[310335985,1704478260306,-500.0,0.0003041,2]
[310335986,1704478260315,-500.0,0.0003041,2]
[310335987,1704478260325,-500.0,0.0003041,2]
[310335988,1704478260334,-500.0,0.0003041,2]
[310335989,1704478260344,-545.30692219,0.0003041,2]
[310335990,1704478260353,-500.0,0.0003041,2]
[310335991,1704478260363,-256.10904559,0.0003041,2]
[310335992,1704478260372,-500.0,0.0003041,2]
[310335993,1704478260381,-500.0,0.0003041,2]
[310335994,1704478260390,-207.68231357,0.0003041,2]
[310335995,1704478260400,-547.97,0.0003041,2]
[310335996,1704478260410,-500.0,0.0003041,2]